bitfinex/quotes_BTCUSD_20241003
["timestamp","ask_amount","ask_price","bid_price","bid_amount"]
[1727988154138,0.002636,60899.0,60898.0,0.72550269]
[1727988155948,0.001636,60899.0,60898.0,0.71150269]
[1727988156171,0.001636,60899.0,60898.0,0.72550269]
[1727988156611,0.001636,60899.0,60898.0,0.71150269]
[1727988156841,0.001636,60899.0,60898.0,0.72550269]
[1727988157948,0.001636,60899.0,60898.0,0.73074808]
[1727988166059,0.001636,60899.0,60898.0,0.71674808]
[1727988166484,0.001636,60899.0,60898.0,0.73074808]
[1727988166708,0.001636,60899.0,60898.0,0.83574808]
[1727988167816,0.001636,60899.0,60898.0,0.83374808]
[1727988168099,0.001636,60899.0,60898.0,0.83574808]
[1727988168325,0.001636,60899.0,60898.0,0.81974808]
[1727988169206,0.001636,60899.0,60898.0,0.83374808]
[1727988169678,0.001636,60899.0,60898.0,0.81974808]
[1727988169895,0.001636,60899.0,60898.0,0.83374808]
[1727988170605,0.001636,60899.0,60898.0,0.83574808]
[1727988172150,0.001636,60899.0,60898.0,0.72304808]
[1727988173125,0.002636,60899.0,60898.0,0.73704808]
[1727988175533,0.002636,60899.0,60898.0,0.73204808]
[1727988177470,0.002636,60899.0,60898.0,0.73704808]
[1727988177711,0.002636,60899.0,60898.0,0.73204808]
[1727988178610,0.002636,60899.0,60898.0,0.73704808]
[1727988180320,0.002636,60899.0,60898.0,0.73204808]
[1727988181262,0.002636,60899.0,60898.0,0.4696411]
[1727988181671,0.002636,60899.0,60898.0,0.36501598]
[1727988182805,0.002636,60899.0,60898.0,0.38801598]
[1727988191613,0.002636,60899.0,60898.0,0.32374176]
[1727988192528,0.002636,60899.0,60898.0,0.30074176]
[1727988193669,0.002636,60899.0,60898.0,0.28674176]
[1727988193882,0.001636,60899.0,60898.0,0.28374176]
[1727988194102,0.001636,60899.0,60898.0,0.29274176]
[1727988197080,0.001636,60899.0,60898.0,0.02]
[1727988197297,0.001636,60899.0,60898.0,0.184209]
[1727988199376,0.183536,60899.0,60898.0,0.02]
[1727988199614,0.68391658,60899.0,60898.0,0.02]
[1727988199848,0.58627516,60899.0,60898.0,0.02]
[1727988200346,0.58627516,60899.0,60898.0,0.009]
[1727988200585,0.332014,60896.0,60895.0,0.0007269]
[1727988200829,0.66818798,60896.0,60895.0,0.0007269]
[1727988201289,0.40522123,60896.0,60895.0,0.0007269]
[1727988201516,0.40522138,60896.0,60895.0,0.0007269]
[1727988201990,0.40622138,60896.0,60895.0,0.0007269]
[1727988202223,0.333014,60896.0,60895.0,0.0007269]
[1727988202461,0.40622138,60896.0,60895.0,0.0007269]
[1727988202917,0.40620649,60896.0,60895.0,0.0007269]
[1727988203167,0.40620649,60896.0,60895.0,0.0027269]
[1727988203390,0.38179497,60896.0,60895.0,0.0027269]
[1727988205253,0.333014,60896.0,60895.0,0.0027269]
[1727988205951,0.35875786,60896.0,60895.0,0.0027269]
[1727988206860,0.333014,60896.0,60895.0,0.0027269]
[1727988210188,0.35875789,60896.0,60895.0,0.0027269]
[1727988211339,0.333014,60896.0,60895.0,0.0027269]
[1727988214524,0.35875804,60896.0,60895.0,0.0027269]
[1727988216536,0.333014,60896.0,60895.0,0.0027269]
[1727988220816,0.38175629,60896.0,60895.0,0.0027269]
[1727988221034,0.333014,60896.0,60895.0,0.0027269]
[1727988221992,0.38175629,60896.0,60895.0,0.0027269]
[1727988224244,0.333014,60896.0,60895.0,0.0027269]
[1727988224893,0.40612744,60896.0,60895.0,0.0027269]
[1727988225123,0.67248787,60896.0,60895.0,0.0027269]
[1727988225339,0.164238,60887.0,60886.0,0.24666793]
[1727988225585,0.38650373,60887.0,60886.0,0.24666793]
[1727988226060,0.38650373,60887.0,60876.0,0.165086]
[1727988226061,0.164258,60880.0,60876.0,0.165086]
[1727988226308,0.164258,60880.0,60876.0,0.000818]
[1727988226552,0.328498,60884.0,60878.0,0.000818]
[1727988226553,0.16426,60879.0,60878.0,0.000818]
[1727988227001,0.25946,60879.0,60878.0,0.000818]
[1727988227439,0.25946,60879.0,60878.0,0.010818]
[1727988227917,0.25946,60879.0,60878.0,0.018818]
[1727988228343,0.25946,60879.0,60878.0,0.010818]
[1727988228778,0.25946,60879.0,60878.0,0.000818]
[1727988228995,0.26046,60879.0,60878.0,0.009818]
[1727988229443,0.25946,60879.0,60878.0,0.000818]
[1727988229675,0.25946,60879.0,60878.0,0.008818]
[1727988229886,0.26046,60879.0,60878.0,0.017818]
[1727988230526,0.28620793,60879.0,60878.0,0.017818]
[1727988234689,0.26046,60879.0,60878.0,0.017818]
[1727988237804,0.28620885,60879.0,60878.0,0.017818]
[1727988241519,0.26046,60879.0,60878.0,0.017818]
[1727988243582,0.0962,60879.0,60878.0,0.18208]
[1727988243797,0.16526,60879.0,60878.0,0.017818]
[1727988244221,0.001,60879.0,60878.0,0.017818]
[1727988244862,0.02674844,60879.0,60878.0,0.017818]
[1727988245506,0.02674844,60879.0,60878.0,0.18208]
[1727988248147,0.02674844,60879.0,60878.0,0.42874793]
[1727988248369,0.02674844,60879.0,60878.0,0.18208]
[1727988249296,0.001,60879.0,60878.0,0.18208]
[1727988252185,0.001,60879.0,60878.0,0.42874793]
[1727988252467,0.001,60879.0,60878.0,0.52794793]
[1727988252697,0.001,60879.0,60878.0,0.54016671]
[1727988253398,0.001,60879.0,60878.0,0.53216671]
[1727988253825,0.001,60879.0,60878.0,0.54016671]
[1727988254300,0.04881245,60891.0,60890.0,0.16423]
[1727988254524,0.04881245,60891.0,60880.0,0.0823]
[1727988254525,0.164235,60889.0,60880.0,0.0823]
[1727988254753,0.04882122,60886.0,60882.0,0.328499]
[1727988255005,0.04882122,60886.0,60885.0,0.164243]
[1727988256553,0.07456647,60886.0,60885.0,0.164243]
[1727988256770,0.07455537,60886.0,60885.0,0.164243]
[1727988257418,0.02574525,60886.0,60885.0,0.164243]
[1727988257602,0.0998,60885.0,60881.0,0.164253]
[1727988257852,0.0998,60885.0,60881.0,0.164254]
[1727988257853,0.21305704,60884.0,60881.0,0.164254]
[1727988259201,0.04881004,60883.0,60881.0,0.164254]
[1727988259448,0.04881004,60882.0,60881.0,0.164254]
[1727988259890,0.04881004,60882.0,60881.0,0.166254]
[1727988260067,0.04881004,60882.0,60881.0,0.164254]
[1727988260281,0.04881004,60882.0,60877.0,0.328529]
[1727988260497,0.164252,60882.0,60881.0,0.003]
[1727988260713,0.23746519,60883.0,60881.0,0.004]
[1727988260954,0.23746519,60883.0,60881.0,0.008]
[1727988261173,0.23746519,60883.0,60881.0,0.004]
[1727988261402,0.23746519,60883.0,60881.0,0.004818]
[1727988262278,0.23746519,60883.0,60881.0,0.005818]
[1727988263183,0.07321519,60882.0,60881.0,0.008818]
[1727988264107,0.07321519,60882.0,60881.0,0.003818]
[1727988264551,0.09896239,60882.0,60881.0,0.009818]
[1727988265245,0.09896239,60882.0,60881.0,0.006818]
[1727988265485,0.09896239,60882.0,60881.0,0.010818]
[1727988266428,0.0257472,60882.0,60881.0,0.010818]
[1727988266649,0.26272965,60882.0,60881.0,0.010818]
[1727988266873,0.26272965,60882.0,60881.0,0.175072]
[1727988267103,0.09904953,60882.0,60881.0,0.175072]
[1727988267332,0.09905552,60882.0,60881.0,0.29769357]
[1727988268233,0.0257472,60882.0,60881.0,0.29769357]
[1727988269113,0.09906345,60882.0,60881.0,0.29769357]
[1727988269329,0.0257472,60882.0,60881.0,0.29769357]
[1727988269544,0.0257472,60882.0,60881.0,0.13343957]
[1727988270233,0.12336745,60882.0,60881.0,0.13343957]
[1727988270678,0.36063545,60882.0,60881.0,0.13343957]
[1727988271835,0.36063545,60882.0,60881.0,0.29769357]
[1727988272283,0.2630152,60882.0,60881.0,0.29769357]
[1727988274837,0.237268,60882.0,60881.0,0.29769357]
[1727988275054,0.33516369,60882.0,60881.0,0.29769357]
[1727988275313,0.09789569,60882.0,60881.0,0.29769357]
[1727988275545,0.09789569,60882.0,60881.0,0.13343957]
[1727988275708,0.33516369,60882.0,60881.0,0.13343957]
[1727988277487,0.33516369,60882.0,60881.0,0.29769357]
[1727988277696,0.237268,60882.0,60881.0,0.29769357]
[1727988277957,0.12202531,60883.0,60881.0,0.29769357]
[1727988278390,0.09787311,60882.0,60881.0,0.29769357]
[1727988278825,0.09787311,60882.0,60881.0,0.29169357]
[1727988279045,0.33514111,60882.0,60881.0,0.29669357]
[1727988279314,0.33514111,60882.0,60881.0,0.29269357]
[1727988279534,0.09787311,60882.0,60881.0,0.29269357]
[1727988279748,0.33514111,60882.0,60881.0,0.29569357]
[1727988279962,0.33514111,60882.0,60881.0,0.29269357]
[1727988280160,0.09787311,60882.0,60881.0,0.29669357]
[1727988280633,0.237268,60882.0,60881.0,0.29169357]
[1727988280865,0.237268,60882.0,60881.0,0.29769357]
[1727988281096,0.0978718,60884.0,60881.0,0.54484657]
[1727988281317,0.12202531,60885.0,60882.0,0.346052]
[1727988281318,0.07340555,60883.0,60882.0,0.346052]
[1727988281533,0.04893691,60883.0,60882.0,0.46867357]
[1727988281998,0.04893691,60883.0,60882.0,0.49167357]
[1727988282726,0.04893691,60884.0,60882.0,0.32742157]
[1727988282936,0.04893691,60884.0,60883.0,0.187249]
[1727988283584,0.04893691,60885.0,60884.0,0.164246]
[1727988283834,0.04893691,60885.0,60884.0,0.28686757]
[1727988284922,0.04893691,60885.0,60884.0,0.29786757]
[1727988285575,0.04893691,60885.0,60884.0,0.28686757]
[1727988286682,0.04893691,60885.0,60884.0,0.29686757]
[1727988286988,0.04893691,60885.0,60884.0,0.30786757]
[1727988287443,0.04893691,60885.0,60884.0,0.29686757]
[1727988287660,0.02574519,60886.0,60885.0,0.164244]
[1727988288747,0.02574519,60886.0,60885.0,0.173244]
[1727988288966,0.0489002,60890.0,60885.0,0.36676793]
[1727988289204,0.09776797,60893.0,60889.0,0.45108557]
[1727988289205,0.0489002,60893.0,60889.0,0.45108557]
[1727988289416,0.001636,60895.0,60894.0,0.164219]
[1727988290929,0.001636,60895.0,60892.0,0.164224]
[1727988290930,0.093736,60895.0,60892.0,0.164224]
[1727988291165,0.093736,60895.0,60885.0,0.1231]
[1727988291166,0.164224,60893.0,60889.0,0.164233]
[1727988291397,0.164223,60893.0,60890.0,0.24666793]
[1727988291606,0.164224,60893.0,60890.0,0.24666793]
[1727988291822,0.04886756,60894.0,60890.0,0.16423]
[1727988292064,0.04886756,60894.0,60887.0,0.328472]
[1727988292278,0.21309356,60892.0,60888.0,0.164234]
[1727988292494,0.04886756,60892.0,60889.0,0.01]
[1727988292714,0.04886756,60893.0,60890.0,0.164227]
[1727988293185,0.04886756,60893.0,60891.0,0.164227]
[1727988294541,0.04886756,60893.0,60891.0,0.005]
[1727988294786,0.21305724,60893.0,60891.0,0.005]
[1727988295906,0.164225,60892.0,60891.0,0.008]
[1727988296173,0.21305924,60893.0,60891.0,0.008]
[1727988296625,0.23880277,60893.0,60891.0,0.008]
[1727988296855,0.23880277,60893.0,60891.0,0.003]
[1727988297315,0.23880277,60893.0,60891.0,0.009]
[1727988297755,0.21305924,60893.0,60891.0,0.003]
[1727988297964,0.04883524,60893.0,60891.0,0.003]
[1727988298196,0.21305824,60893.0,60891.0,0.008]
[1727988298453,0.164225,60892.0,60891.0,0.008]
[1727988299624,0.164225,60892.0,60891.0,0.005]
[1727988299804,0.164225,60892.0,60889.0,0.164231]
[1727988300075,0.164225,60892.0,60891.0,0.01]
[1727988301134,0.18996886,60892.0,60891.0,0.004]
[1727988301603,0.09898395,60892.0,60889.0,0.006]
[1727988301823,0.16423,60890.0,60889.0,0.006]
[1727988302042,0.16423,60890.0,60889.0,0.01]
[1727988302295,0.16423,60890.0,60889.0,0.006]
[1727988302698,0.16423,60890.0,60887.0,0.164238]
[1727988303108,0.21305289,60891.0,60888.0,0.164235]
[1727988303326,0.04882489,60891.0,60889.0,0.168233]
[1727988303738,0.04882489,60891.0,60889.0,0.174233]
[1727988304195,0.04882489,60891.0,60889.0,0.004]
[1727988304403,0.21305289,60891.0,60889.0,0.004]
[1727988304615,0.21305289,60891.0,60889.0,0.009]
[1727988304826,0.21305289,60891.0,60889.0,0.005]
[1727988305030,0.04882489,60891.0,60889.0,0.005]
[1727988305254,0.04882489,60891.0,60889.0,0.169232]
[1727988305871,0.04882489,60891.0,60889.0,0.172232]
[1727988307167,0.04882489,60893.0,60892.0,0.164225]
[1727988307433,0.07324009,60894.0,60893.0,0.164222]
[1727988307669,0.001636,60895.0,60894.0,0.265619]
[1727988308110,0.001636,60895.0,60894.0,0.42880571]
[1727988308846,0.083336,60895.0,60894.0,0.42880571]
[1727988309313,0.083336,60895.0,60894.0,0.44280571]
[1727988309784,0.083336,60895.0,60894.0,0.279619]
[1727988310028,0.083336,60895.0,60894.0,0.293619]
[1727988320881,0.083336,60895.0,60894.0,0.294437]
[1727988323675,0.083336,60895.0,60894.0,0.41697445]
[1727988325040,0.083336,60895.0,60894.0,0.40297445]
[1727988325760,0.083336,60895.0,60894.0,0.41697445]
[1727988340927,0.083336,60895.0,60894.0,0.294437]
[1727988342040,0.180036,60895.0,60894.0,0.193037]
[1727988342279,0.344253,60895.0,60894.0,0.028818]
[1727988343210,0.46679045,60895.0,60894.0,0.028818]
[1727988343482,0.344253,60895.0,60894.0,0.014818]
[1727988343697,0.39307236,60895.0,60894.0,0.000818]
[1727988343916,0.39307236,60895.0,60894.0,0.020818]
[1727988344131,0.344253,60895.0,60894.0,0.020818]
[1727988344558,0.344253,60895.0,60894.0,0.008818]
[1727988344799,0.344253,60895.0,60894.0,0.012818]
[1727988345024,0.344253,60895.0,60894.0,0.004818]
[1727988345542,0.344253,60895.0,60894.0,0.003818]
[1727988345991,0.36999618,60895.0,60894.0,0.004818]
[1727988346456,0.41884883,60895.0,60894.0,0.004818]
[1727988346689,0.41884883,60895.0,60894.0,0.003818]
[1727988346905,0.41884883,60895.0,60894.0,0.000818]
[1727988347118,0.41984883,60895.0,60894.0,0.000818]
[1727988347339,0.41984883,60895.0,60894.0,0.002818]
[1727988347550,0.41985084,60895.0,60894.0,0.002818]
[1727988347770,0.41985084,60895.0,60894.0,0.000818]
[1727988348181,0.41985084,60895.0,60894.0,0.001818]
[1727988348654,0.37099618,60895.0,60894.0,0.001818]
[1727988348885,0.36999618,60895.0,60894.0,0.001818]
[1727988349109,0.37099618,60895.0,60894.0,0.001818]
[1727988350446,0.345253,60895.0,60894.0,0.001818]
[1727988351102,0.68147513,60895.0,60894.0,0.001818]
[1727988351532,0.51725813,60895.0,60894.0,0.001818]
[1727988351769,0.181036,60895.0,60894.0,0.001818]
[1727988352948,0.180036,60895.0,60894.0,0.001818]
[1727988353378,0.180036,60895.0,60894.0,0.003818]
[1727988353589,0.180036,60895.0,60894.0,0.001818]
[1727988353822,0.2057784,60895.0,60894.0,0.000818]
[1727988354033,0.2057784,60895.0,60894.0,0.003818]
[1727988354282,0.1090784,60895.0,60894.0,0.007818]
[1727988354663,0.1090784,60895.0,60894.0,0.003818]
[1727988354874,0.1090784,60895.0,60894.0,0.008818]
[1727988356429,0.2732954,60895.0,60894.0,0.008818]
[1727988356868,0.247553,60895.0,60894.0,0.008818]
[1727988363161,0.338853,60895.0,60894.0,0.008818]
[1727988363404,0.54349045,60895.0,60894.0,0.008818]
[1727988363648,0.59237817,60895.0,60894.0,0.008818]
[1727988363877,0.87984557,60895.0,60894.0,0.003818]
[1727988364100,0.87984557,60895.0,60894.0,0.002818]
[1727988364101,0.88207012,60895.0,60894.0,0.002818]
[1727988364371,0.88207012,60895.0,60891.0,0.000818]
[1727988364372,0.264225,60892.0,60891.0,0.000818]
[1727988364669,0.264225,60892.0,60884.0,0.000818]
[1727988364670,0.337644,60885.0,60884.0,0.000818]
[1727988364906,0.337644,60885.0,60875.0,0.000818]
[1727988364907,0.266252,60882.0,60875.0,0.000818]
[1727988365156,0.58693167,60882.0,60875.0,0.000818]
[1727988365378,0.166265,60877.0,60875.0,0.000818]
[1727988365604,0.266265,60877.0,60875.0,0.000818]
[1727988365873,0.64855643,60877.0,60876.0,0.000818]
[1727988366114,0.64655643,60877.0,60876.0,0.000818]
[1727988366364,0.74443776,60877.0,60876.0,0.000818]
[1727988366591,0.74443776,60877.0,60860.0,0.000818]
[1727988366592,0.164281,60871.0,60860.0,0.000818]
[1727988366830,0.38684045,60863.0,60860.0,0.000818]
[1727988367087,0.40341748,60863.0,60860.0,0.000818]
[1727988367322,0.28088003,60863.0,60860.0,0.000818]
[1727988367547,0.40341748,60863.0,60862.0,0.000818]
[1727988367776,0.46796317,60863.0,60862.0,0.000818]
[1727988368226,0.47396317,60863.0,60862.0,0.001818]
[1727988368947,0.28688003,60863.0,60862.0,0.001818]
[1727988369390,0.28688003,60863.0,60862.0,0.000818]
[1727988369391,0.28088003,60863.0,60862.0,0.000818]
[1727988369577,0.49672119,60863.0,60862.0,0.000818]
[1727988369834,0.47696317,60863.0,60862.0,0.001818]
[1727988370090,0.47696317,60863.0,60862.0,0.000818]
[1727988370091,0.46796317,60863.0,60862.0,0.000818]
[1727988370520,0.46896317,60863.0,60862.0,0.001818]
[1727988373993,0.28188003,60863.0,60862.0,0.001818]
[1727988378029,0.27969978,60863.0,60862.0,0.001818]
[1727988380710,0.30545854,60863.0,60862.0,0.001818]
[1727988385282,0.27969978,60863.0,60862.0,0.001818]
[1727988388169,0.30545836,60863.0,60862.0,0.001818]
[1727988390935,0.30709636,60863.0,60862.0,0.001818]
[1727988392410,0.28133778,60863.0,60862.0,0.001818]
[1727988392869,0.002638,60863.0,60862.0,0.371781]
[1727988393380,0.002638,60863.0,60862.0,0.249024]
[1727988393625,0.002638,60863.0,60862.0,0.001818]
[1727988393626,0.18351803,60863.0,60862.0,0.001818]
[1727988394304,0.18251803,60863.0,60862.0,0.001818]
[1727988395445,0.18251803,60863.0,60862.0,0.000818]
[1727988395707,0.20827482,60863.0,60862.0,0.005818]
[1727988395963,0.20827482,60863.0,60862.0,0.000818]
[1727988396187,0.20927482,60863.0,60862.0,0.005818]
[1727988396852,0.18351803,60863.0,60862.0,0.005818]
[1727988397109,0.18251803,60863.0,60862.0,0.002818]
[1727988398528,0.18251803,60863.0,60862.0,0.005818]
[1727988399486,0.001638,60863.0,60862.0,0.000818]
[1727988399724,0.001638,60863.0,60862.0,0.165124]
[1727988399963,0.001638,60863.0,60862.0,0.461681]
[1727988400195,0.001638,60863.0,60862.0,0.460681]
[1727988400444,0.001638,60863.0,60862.0,0.458681]
[1727988400711,0.001638,60863.0,60862.0,0.481681]
[1727988400970,0.001638,60863.0,60862.0,0.458681]
[1727988401659,0.001638,60863.0,60862.0,0.335924]
[1727988401923,0.001638,60863.0,60862.0,0.338924]
[1727988402154,0.002638,60863.0,60862.0,0.344924]
[1727988402386,0.001638,60863.0,60862.0,0.334924]
[1727988402602,0.002638,60863.0,60862.0,0.340924]
[1727988402816,0.003638,60863.0,60862.0,0.350924]
[1727988409677,0.003638,60863.0,60862.0,0.181124]
[1727988409888,0.003638,60863.0,60862.0,0.016818]
[1727988409889,0.167941,60863.0,60862.0,0.016818]
[1727988410318,0.07695974,60863.0,60862.0,0.016818]
[1727988410561,0.25784149,60863.0,60862.0,0.016818]
[1727988411010,0.52135153,60863.0,60862.0,0.016818]
[1727988411205,0.42378715,60863.0,60862.0,0.016818]
[1727988411642,0.42178715,60863.0,60862.0,0.000818]
[1727988411848,0.42478715,60863.0,60862.0,0.000818]
[1727988412117,0.52478715,60863.0,60862.0,0.000818]
[1727988412778,0.52178715,60863.0,60862.0,0.000818]
[1727988413011,0.53078715,60863.0,60862.0,0.001818]
[1727988413239,0.55654593,60863.0,60862.0,0.001818]
[1727988413438,0.54908868,60863.0,60862.0,0.000818]
[1727988413704,0.55708868,60863.0,60862.0,0.001818]
[1727988414153,0.55508868,60863.0,60862.0,0.001818]
[1727988414601,0.56008868,60863.0,60862.0,0.001818]
[1727988417728,0.5343299,60863.0,60862.0,0.001818]
[1727988421135,0.56008885,60863.0,60862.0,0.001818]
[1727988422282,0.5343299,60863.0,60862.0,0.001818]
[1727988423271,0.3700269,60863.0,60862.0,0.001818]
[1727988423503,0.63207827,60863.0,60862.0,0.001818]
[1727988423726,0.5343299,60863.0,60862.0,0.001818]
[1727988423946,0.5293299,60863.0,60862.0,0.001818]
[1727988424394,0.5343299,60863.0,60862.0,0.001818]
[1727988424874,0.69251661,60863.0,60862.0,0.001818]
[1727988425089,0.5243299,60863.0,60862.0,0.000818]
[1727988425343,0.55709033,60863.0,60862.0,0.000818]
[1727988425578,0.55009033,60863.0,60862.0,0.000818]
[1727988425802,0.54982674,60863.0,60862.0,0.000818]
[1727988426071,0.55682674,60863.0,60862.0,0.000818]
[1727988426539,0.52806631,60863.0,60862.0,0.000818]
[1727988426756,0.53306631,60863.0,60862.0,0.001818]
[1727988431657,0.65547619,60863.0,60862.0,0.001818]
[1727988432121,0.65047619,60863.0,60862.0,0.000818]
[1727988432356,0.64347619,60863.0,60862.0,0.000818]
[1727988432576,0.64347619,60863.0,60862.0,0.001818]
[1727988433254,0.52106631,60863.0,60862.0,0.001818]
[1727988434187,0.54682411,60863.0,60862.0,0.004818]
[1727988434906,0.3804853,60863.0,60862.0,0.004818]
[1727988435149,0.54585282,60863.0,60862.0,0.004818]
[1727988435438,0.44788802,60863.0,60862.0,0.004818]
[1727988435674,0.54585282,60863.0,60862.0,0.004818]
[1727988438008,0.38154982,60863.0,60862.0,0.004818]
[1727988438266,0.0273958,60863.0,60862.0,0.169124]
[1727988438503,0.0273958,60863.0,60862.0,0.344924]
[1727988439268,0.001638,60863.0,60862.0,0.344924]
[1727988439462,0.001638,60863.0,60862.0,0.179618]
[1727988439463,0.165941,60863.0,60862.0,0.179618]
[1727988439691,0.18251803,60863.0,60862.0,0.000818]
[1727988439914,0.2559819,60863.0,60862.0,0.003818]
[1727988440137,0.52009999,60863.0,60862.0,0.003818]
[1727988440361,0.54558795,60863.0,60862.0,0.002818]
[1727988440605,0.52109116,60863.0,60862.0,0.002818]
[1727988440833,0.52209116,60863.0,60862.0,0.010818]
[1727988441076,0.24326814,60863.0,60862.0,0.010818]
[1727988441300,0.24326814,60863.0,60862.0,0.167124]
[1727988441301,0.05161411,60863.0,60862.0,0.167124]
[1727988441532,0.002638,60863.0,60862.0,0.171124]
[1727988441746,0.003638,60863.0,60862.0,0.351924]
[1727988442198,0.002638,60863.0,60862.0,0.346924]
[1727988442443,0.003638,60863.0,60862.0,0.351924]
[1727988442909,0.002638,60863.0,60862.0,0.345924]
[1727988443187,0.002638,60863.0,60862.0,0.353924]
[1727988443188,0.003638,60863.0,60862.0,0.353924]
[1727988450539,0.003638,60863.0,60862.0,0.178124]
[1727988450783,0.003638,60863.0,60862.0,0.013818]
[1727988451199,0.167941,60863.0,60862.0,0.013818]
[1727988451428,0.05261411,60863.0,60862.0,0.013818]
[1727988451659,0.05261411,60863.0,60862.0,0.178124]
[1727988452106,0.05261411,60863.0,60862.0,0.013818]
[1727988452326,0.05261411,60863.0,60862.0,0.178124]
[1727988452971,0.23349414,60863.0,60862.0,0.013818]
[1727988453186,0.18451803,60863.0,60862.0,0.013818]
[1727988453460,0.52191436,60863.0,60862.0,0.013818]
[1727988453953,0.5454103,60863.0,60862.0,0.005818]
[1727988454187,0.5454103,60863.0,60862.0,0.011818]
[1727988454188,0.42397052,60863.0,60862.0,0.011818]
[1727988454402,0.5464103,60863.0,60862.0,0.011818]
[1727988454610,0.5454103,60863.0,60862.0,0.006818]
[1727988455030,0.5454103,60863.0,60862.0,0.009818]
[1727988455246,0.42297052,60863.0,60862.0,0.006818]
[1727988455470,0.44872754,60863.0,60862.0,0.006818]
[1727988455889,0.44772754,60863.0,60862.0,0.000818]
[1727988456104,0.44772754,60863.0,60862.0,0.002818]
[1727988456566,0.42197052,60863.0,60862.0,0.002818]
[1727988458233,0.42296346,60863.0,60862.0,0.002818]
[1727988461777,0.42696346,60863.0,60862.0,0.002818]
[1727988462435,0.42696346,60863.0,60862.0,0.000818]
[1727988462906,0.42896346,60863.0,60862.0,0.000818]
[1727988463458,0.45472116,60863.0,60862.0,0.000818]
[1727988464521,0.39621542,60863.0,60862.0,0.000818]
[1727988464923,0.37174019,60863.0,60862.0,0.000818]
[1727988465496,0.36574019,60863.0,60862.0,0.000818]
[1727988465714,0.53004319,60863.0,60862.0,0.001818]
[1727988466187,0.53004319,60863.0,60862.0,0.003818]
[1727988466636,0.53004319,60863.0,60862.0,0.007818]
[1727988468253,0.5302572,60863.0,60862.0,0.007818]
[1727988468480,0.40657907,60863.0,60862.0,0.007818]
[1727988469183,0.24227607,60863.0,60862.0,0.007818]
[1727988469411,0.09955232,60863.0,60862.0,0.007818]
[1727988469626,0.34019039,60863.0,60862.0,0.007818]
[1727988470525,0.50449339,60863.0,60862.0,0.007818]
[1727988471146,0.34019039,60863.0,60862.0,0.007818]
[1727988471877,0.36594686,60863.0,60862.0,0.007818]
[1727988472097,0.36594686,60863.0,60862.0,0.172124]
[1727988472326,0.26803254,60863.0,60862.0,0.007818]
[1727988472555,0.26808801,60863.0,60862.0,0.007818]
[1727988473014,0.26808801,60863.0,60862.0,0.084318]
[1727988473276,0.14688459,60869.0,60863.0,0.1949]
[1727988473277,0.04896666,60869.0,60863.0,0.1949]
[1727988473514,0.04896666,60876.0,60875.0,0.164271]
[1727988473750,0.04896666,60876.0,60871.0,0.0765]
[1727988473751,0.29563459,60880.0,60878.0,0.164262]
[1727988474029,0.07344999,60881.0,60877.0,0.18698257]
[1727988474030,0.04896666,60879.0,60877.0,0.18698257]
[1727988474505,0.04896666,60879.0,60878.0,0.164262]
[1727988475451,0.04896215,60880.0,60877.0,0.35124557]
[1727988475688,0.001,60879.0,60878.0,0.164262]
[1727988476171,0.003,60879.0,60878.0,0.180262]
[1727988476431,0.003,60879.0,60878.0,0.175262]
[1727988476432,0.001,60879.0,60878.0,0.175262]
[1727988476657,0.02674855,60879.0,60878.0,0.175262]
[1727988477027,0.02574855,60879.0,60878.0,0.164262]
[1727988478492,0.02674855,60879.0,60878.0,0.175262]
[1727988478696,0.02774855,60879.0,60878.0,0.180262]
[1727988478934,0.02774855,60879.0,60878.0,0.169262]
[1727988478935,0.02674855,60879.0,60878.0,0.169262]
[1727988479411,0.02674855,60879.0,60878.0,0.175262]
[1727988479881,0.02674855,60879.0,60878.0,0.169262]
[1727988480106,0.02774855,60879.0,60878.0,0.175262]
[1727988480328,0.02874855,60879.0,60878.0,0.180262]
[1727988481719,0.02674855,60879.0,60878.0,0.175262]
[1727988481945,0.02774855,60879.0,60878.0,0.180262]
[1727988482222,0.02938455,60879.0,60878.0,0.180262]
[1727988487395,0.02938455,60879.0,60878.0,0.016]
[1727988487872,0.02938455,60879.0,60878.0,0.180262]
[1727988488113,0.02838455,60879.0,60878.0,0.243262]
[1727988488353,0.001636,60879.0,60878.0,0.337662]
[1727988488585,0.003636,60879.0,60878.0,0.375662]
[1727988488803,0.003636,60879.0,60878.0,0.370662]
[1727988489030,0.002636,60879.0,60878.0,0.365662]
[1727988489222,0.004636,60879.0,60878.0,0.372662]
[1727988489499,0.004636,60879.0,60878.0,0.53084871]
[1727988489500,0.002636,60879.0,60878.0,0.53084871]
[1727988489742,0.002636,60879.0,60878.0,0.52884871]
[1727988489962,0.003636,60879.0,60878.0,0.53984871]
[1727988491102,0.002636,60879.0,60878.0,0.53684871]
[1727988491330,0.002636,60879.0,60878.0,0.54084871]
[1727988491331,0.003636,60879.0,60878.0,0.54084871]
[1727988495315,0.003636,60879.0,60878.0,0.53884871]
[1727988504221,0.003636,60879.0,60878.0,0.375662]
[1727988505382,0.003636,60879.0,60878.0,0.53884871]
[1727988510369,0.003636,60879.0,60878.0,0.54427867]
[1727988512133,0.003636,60879.0,60878.0,0.375662]
[1727988512349,0.003636,60879.0,60878.0,0.179262]
[1727988517497,0.003636,60879.0,60878.0,0.54703359]
[1727988517730,0.003636,60879.0,60878.0,0.54374871]
[1727988519696,0.003636,60879.0,60878.0,0.54174871]
[1727988528803,0.003636,60879.0,60878.0,0.78841664]
[1727988529048,0.003636,60879.0,60878.0,0.89341664]
[1727988529267,0.003636,60879.0,60878.0,0.64674871]
[1727988529480,0.003636,60879.0,60878.0,0.64874871]
[1727988529975,0.003636,60879.0,60878.0,0.77131544]
[1727988531822,0.001636,60879.0,60878.0,0.82051123]
[1727988532070,0.002636,60879.0,60878.0,0.84851123]
[1727988542055,0.002636,60879.0,60878.0,0.56521123]
[1727988542272,0.002636,60879.0,60878.0,0.192262]
[1727988543403,0.002636,60879.0,60878.0,0.292262]
[1727988543883,0.002636,60879.0,60878.0,0.192262]
[1727988544823,0.001636,60879.0,60878.0,0.164262]